Workbook

Sheet Instructions
A1: This spreadsheet is provided to assist you in collecting data for quality control testing
A2: of a mammographic x-ray unit.
A4: The tab following this Instruction sheet is the sheet on which you will import the
A5: generator test data from your Accu-Gold system. To simplify the analysis, it is
A6: recommended that the template as presented by followed as closely as possible. If
A7: a generator does not have one of the indicated settings and that row is not used,
A8: do not delete the row from the spreadsheet; rather, just clear the cells of that row
A9: of any entries.
A11: The cells on the Data sheet are color coded as follows: | G11: Sheet
A12: Green | B12: cells are for data that is collected from AG2 software. | G12: AG2 Data
A13: Yellow | B13: cells are where you enter information specific to your testing session | G13: AG2 Data
A15: The Report sheet is calculated and completed automatically. Except for pasting the
A16: waveform, your intervention should not be required.
A18: The Windows snipping tool can be used to copy a screen shot of the waveform.
A39: Prior to measuring set the unit of measure.
A40: This can be done by accessing the "unit" settings on the "List" tab.
A67: Getting started
A68: Open Accu-Gold 2 and activate "Companion Mode"
A84: If the software is already open you can just click the "Toggle" button
A104: Accu-Gold 2 will automatically re-size the template and application so they can be viewed
A105: simultaneously.
A122: The starting cell "E3" will automatically be selected.
A124: On Accu-Gold 2 with Accu-Gold format selected click the "Get Cell" button
A125: and check the auto-send box.
A127: You can press the "Start" button and begin measuring when the software
A128: is in the "Ready" state.
A130: Exposures can be redone by selecting any cell in column "E" of the exposure line then using
A131: the "Get Cell" button on AccuGold 2.
A134: Please Note ---
A135: These templates are provided with the compliments of Radcal Corporation as samples and
A136: are available for modification by the user. Certain cells are locked and protected but may be
A137: unlocked without a password. (Use Tools/Protection/Unprotect Workbook/[enter])
A138: Radcal assumes no responsibility or liability for any unintentional errors.
A139: It remains the user's responsibility to validate the calculations and to confirm suitability for the particular purpose.

Sheet AG2 Data
A1: Machine Settings | F1: Measured Data
A2: Set kV | B2: mAs | C2: Target/Filter | D2: Focal Spot | E2: Index | F2: Date | G2: Time | I2: kVp | K2: Dose | M2: Dose Rate | O2: HVL | AL2: Average kV | DN2: Filtration
A3: =Data!A39 -> 24 | B3: =Data!B39 -> 100 | C3: Mo/Mo | D3: =Data!D39 -> L | E3: 1 | F3: 2022-04-25T15:56:23.433 | G3: 1.0709 | H3: s | I3: 23.8 | J3: kV | K3: 653.6 | L3: mR | M3: 610.4 | N3: mR/s | O3: 0.36 | P3: mm | Q3: 1 | S3: USB | T3: 1 | U3: 46.7 | V3: Hz | AD3: Standard | AE3: Multi-Sensor | AF3: Diagnostic | AG3: General | AH3: 3.227 | AI3: mm | AJ3: 120.2 | AK3: kV | AL3: 119.8 | AM3: kV | AR3: 1 | AU3: 0.03113 | AV3: s | DA3: 120.2 | DB3: kV | DD3: 43-0001 | DN3: 3.227 | DO3: mm | DP3: 32.6 | DQ3: kV
A4: =Data!A40 -> 25 | B4: =Data!B40 -> 100 | C4: Mo/Mo | D4: =Data!D40 -> L | E4: 2 | F4: 2022-04-25T15:56:38.732 | G4: 0.9994 | H4: s | I4: 24.9 | J4: kV | K4: 764.9 | L4: mR | M4: 765.4 | N4: mR/s | O4: 0.37 | P4: mm | Q4: 1 | S4: USB | T4: 1 | U4: 7.8 | V4: Hz | AD4: Standard | AE4: Multi-Sensor | AF4: Diagnostic | AG4: General | AH4: 3.227 | AI4: mm | AJ4: 120.2 | AK4: kV | AL4: 119.8 | AM4: kV | AR4: 1 | AU4: 0.1385 | AV4: s | DA4: 120.2 | DB4: kV | DD4: 43-0001 | DJ4: 2572 | DK4: mR/s | DL4: 4.698 | DM4: mm | DN4: 3.227 | DO4: mm | DP4: 119.8 | DQ4: kV
A5: =Data!A41 -> 26 | B5: =Data!B41 -> 100 | C5: Mo/Mo | D5: =Data!D41 -> L | E5: 3 | F5: 2022-04-25T15:56:44.610 | G5: 0.9992 | H5: s | I5: 26 | J5: kV | K5: 878.4 | L5: mR | M5: 879.1 | N5: mR/s | O5: 0.38 | P5: mm | Q5: 1 | S5: USB | T5: 1 | U5: 6.7 | V5: Hz | AD5: Standard | AE5: Multi-Sensor | AF5: Diagnostic | AG5: General | AH5: 3.227 | AI5: mm | AJ5: 120.2 | AK5: kV | AL5: 119.8 | AM5: kV | AR5: 1 | AU5: 0.1591 | AV5: s | DA5: 120.2 | DB5: kV | DD5: 43-0001 | DJ5: 2572 | DK5: mR/s | DL5: 4.698 | DM5: mm | DN5: 3.227 | DO5: mm | DP5: 119.8 | DQ5: kV
A6: =Data!A42 -> 27 | B6: =Data!B42 -> 100 | C6: Mo/Mo | D6: =Data!D42 -> L | E6: 4 | F6: 2022-04-25T15:56:55.107 | G6: 0.9993 | H6: s | I6: 27 | J6: kV | K6: 995.3 | L6: mR | M6: 996 | N6: mR/s | O6: 0.39 | P6: mm | Q6: 1 | S6: USB | T6: 1 | U6: 6.1 | V6: Hz | AD6: Standard | AE6: Multi-Sensor | AF6: Diagnostic | AG6: General | AH6: 3.227 | AI6: mm | AJ6: 120.2 | AK6: kV | AL6: 119.8 | AM6: kV | AR6: 1 | AU6: 0.1739 | AV6: s | DA6: 120.2 | DB6: kV | DD6: 43-0001 | DJ6: 2572 | DK6: mR/s | DL6: 4.698 | DM6: mm | DN6: 3.227 | DO6: mm | DP6: 119.8 | DQ6: kV
A7: =Data!A43 -> 28 | B7: =Data!B43 -> 100 | C7: Mo/Mo | D7: =Data!D43 -> L | E7: 5 | F7: 2022-04-25T15:57:06.004 | G7: 0.9987 | H7: s | I7: 28.1 | J7: kV | K7: 1116 | L7: mR | M7: 1117 | N7: mR/s | O7: 0.4 | P7: mm | Q7: 1 | S7: USB | T7: 1 | U7: 12.8 | V7: Hz | AD7: Standard | AE7: Multi-Sensor | AF7: Diagnostic | AG7: General | AH7: 3.227 | AI7: mm | AJ7: 120.2 | AK7: kV | AL7: 119.8 | AM7: kV | AR7: 1 | AU7: 0.08817 | AV7: s | DA7: 120.2 | DB7: kV | DD7: 43-0001 | DN7: 3.227 | DO7: mm
A8: =Data!A44 -> 28 | B8: =Data!B44 -> 100 | C8: Mo/Mo | D8: =Data!D44 -> L | E8: 6 | F8: 2022-04-25T15:57:08.677 | G8: 0.9988 | H8: s | I8: 28.1 | J8: kV | K8: 1116 | L8: mR | M8: 1117 | N8: mR/s | O8: 0.3 | P8: mm | Q8: 1 | S8: USB | T8: 1 | U8: 8.1 | V8: Hz | AD8: Standard | AE8: Multi-Sensor | AF8: Diagnostic | AG8: General | AH8: 3.227 | AI8: mm | AJ8: 120.2 | AK8: kV | AL8: 119.8 | AM8: kV | AR8: 1 | AU8: 0.1327 | AV8: s | DA8: 120.2 | DB8: kV | DD8: 43-0001 | DJ8: 2572 | DK8: mR/s | DL8: 4.698 | DM8: mm | DN8: 3.227 | DO8: mm | DP8: 119.8 | DQ8: kV
A9: =Data!A45 -> 28 | B9: =Data!B45 -> 100 | C9: Mo/Mo | D9: =Data!D45 -> L | E9: 7 | F9: 2022-04-25T15:57:11.603 | G9: 0.9989 | H9: s | I9: 28.1 | J9: kV | K9: 1115 | L9: mR | M9: 1117 | N9: mR/s | O9: 0.3 | P9: mm | Q9: 1 | S9: USB | T9: 1 | U9: 6 | V9: Hz | AD9: Standard | AE9: Multi-Sensor | AF9: Diagnostic | AG9: General | AH9: 3.227 | AI9: mm | AJ9: 120.2 | AK9: kV | AL9: 119.8 | AM9: kV | AR9: 1 | AU9: 0.1761 | AV9: s | DA9: 120.2 | DB9: kV | DD9: 43-0001 | DJ9: 2572 | DK9: mR/s | DL9: 4.698 | DM9: mm | DN9: 3.227 | DO9: mm | DP9: 119.8 | DQ9: kV
A10: =Data!A46 -> 28 | B10: =Data!B46 -> 100 | C10: Mo/Mo | D10: =Data!D46 -> L | E10: 8 | F10: 2022-04-25T15:57:14.683 | G10: 0.9985 | H10: s | I10: 28.1 | J10: kV | K10: 1116 | L10: mR | M10: 1118 | N10: mR/s | O10: 0.3 | P10: mm | Q10: 1 | S10: USB | T10: 1 | U10: 7.5 | V10: Hz | AD10: Standard | AE10: Multi-Sensor | AF10: Diagnostic | AG10: General | AH10: 3.227 | AI10: mm | AJ10: 120.2 | AK10: kV | AL10: 119.8 | AM10: kV | AR10: 1 | AU10: 0.1437 | AV10: s | DA10: 120.2 | DB10: kV | DD10: 43-0001 | DJ10: 2572 | DK10: mR/s | DL10: 4.698 | DM10: mm | DN10: 3.227 | DO10: mm | DP10: 119.8 | DQ10: kV
A11: =Data!A47 -> 29 | B11: =Data!B47 -> 100 | C11: Mo/Mo | D11: =Data!D47 -> L | E11: 9 | F11: 2022-04-25T15:57:17.568 | G11: 0.9976 | H11: s | I11: 29.3 | J11: kV | K11: 1240 | L11: mR | M11: 1243 | N11: mR/s | O11: 0.31 | P11: mm | Q11: 1 | S11: USB | T11: 1 | U11: 5.7 | V11: Hz | AD11: Standard | AE11: Multi-Sensor | AF11: Diagnostic | AG11: General | AH11: 3.227 | AI11: mm | AJ11: 120.2 | AK11: kV | AL11: 119.8 | AM11: kV | AR11: 1 | AU11: 0.1843 | AV11: s | DA11: 120.2 | DB11: kV | DD11: 43-0001 | DJ11: 2572 | DK11: mR/s | DL11: 4.698 | DM11: mm | DN11: 3.227 | DO11: mm | DP11: 119.8 | DQ11: kV
A12: =Data!A48 -> 30 | B12: =Data!B48 -> 100 | C12: Mo/Mo | D12: =Data!D48 -> L | E12: 10 | F12: 2022-04-25T15:57:20.643 | G12: 0.998 | H12: s | I12: 30.4 | J12: kV | K12: 1369 | L12: mR | M12: 1371 | N12: mR/s | O12: 0.32 | P12: mm | Q12: 1 | S12: USB | T12: 1 | U12: 6.5 | V12: Hz | AD12: Standard | AE12: Multi-Sensor | AF12: Diagnostic | AG12: General | AH12: 3.227 | AI12: mm | AJ12: 120.2 | AK12: kV | AL12: 119.8 | AM12: kV | AR12: 1 | AU12: 0.1628 | AV12: s | DA12: 120.2 | DB12: kV | DD12: 43-0001 | DJ12: 2572 | DK12: mR/s | DL12: 4.698 | DM12: mm | DN12: 3.227 | DO12: mm | DP12: 119.8 | DQ12: kV
A13: =Data!A49 -> 32 | B13: =Data!B49 -> 100 | C13: Mo/Mo | D13: =Data!D49 -> L | E13: 11 | F13: 2022-04-25T15:57:23.517 | G13: 1.0647 | H13: s | I13: 32.4 | J13: kV | K13: 1643 | L13: mR | M13: 1543 | N13: mR/s | O13: 0.33 | P13: mm | Q13: 1 | S13: USB | T13: 1 | U13: 6.8 | V13: Hz | AD13: Standard | AE13: Multi-Sensor | AF13: Diagnostic | AG13: General | AH13: 3.227 | AI13: mm | AJ13: 120.2 | AK13: kV | AL13: 119.8 | AM13: kV | AR13: 1 | AU13: 0.1574 | AV13: s | DA13: 120.2 | DB13: kV | DD13: 43-0001 | DJ13: 2572 | DK13: mR/s | DL13: 4.698 | DM13: mm | DN13: 3.227 | DO13: mm | DP13: 119.8 | DQ13: kV
A14: =Data!A50 -> 28 | B14: =Data!B50 -> 25 | C14: Mo/Mo | D14: =Data!D50 -> L | E14: 12 | F14: 2022-04-25T15:57:26.387 | G14: 0.2489 | H14: s | I14: 28 | J14: kV | K14: 274.2 | L14: mR | M14: 1102 | N14: mR/s | O14: 0.29 | P14: mm | Q14: 1 | S14: USB | T14: 1 | U14: 5.2 | V14: Hz | AD14: Standard | AE14: Multi-Sensor | AF14: Diagnostic | AG14: General | AH14: 3.227 | AI14: mm | AJ14: 120.2 | AK14: kV | AL14: 119.8 | AM14: kV | AR14: 1 | AU14: 0.2007 | AV14: s | DA14: 120.2 | DB14: kV | DD14: 43-0001 | DJ14: 2572 | DK14: mR/s | DL14: 4.698 | DM14: mm | DN14: 3.227 | DO14: mm | DP14: 119.8 | DQ14: kV
A15: =Data!A51 -> 28 | B15: =Data!B51 -> 50 | C15: Mo/Mo | D15: =Data!D51 -> L | E15: 13 | F15: 2022-04-25T15:57:29.264 | G15: 0.4987 | H15: s | I15: 28.1 | J15: kV | K15: 554.4 | L15: mR | M15: 1112 | N15: mR/s | O15: 0.3 | P15: mm | Q15: 1 | S15: USB | T15: 1 | U15: 6.7 | V15: Hz | AD15: Standard | AE15: Multi-Sensor | AF15: Diagnostic | AG15: General | AH15: 3.227 | AI15: mm | AJ15: 120.2 | AK15: kV | AL15: 119.8 | AM15: kV | AR15: 1 | AU15: 0.1589 | AV15: s | DA15: 120.2 | DB15: kV | DD15: 43-0001 | DJ15: 2572 | DK15: mR/s | DL15: 4.698 | DM15: mm | DN15: 3.227 | DO15: mm | DP15: 119.8 | DQ15: kV
A16: =Data!A52 -> 28 | B16: =Data!B52 -> 200 | C16: Mo/Mo | D16: =Data!D52 -> L | E16: 14 | F16: 2022-04-25T15:57:32.164 | G16: 1.9986 | H16: s | I16: 28.1 | J16: kV | K16: 2239 | L16: mR | M16: 1120 | N16: mR/s | O16: 0.3 | P16: mm | Q16: 1 | S16: USB | T16: 1 | U16: 6 | V16: Hz | AD16: Standard | AE16: Multi-Sensor | AF16: Diagnostic | AG16: General | AH16: 3.227 | AI16: mm | AJ16: 120.2 | AK16: kV | AL16: 119.8 | AM16: kV | AR16: 1 | AU16: 0.1775 | AV16: s | DA16: 120.2 | DB16: kV | DD16: 43-0001 | DJ16: 2572 | DK16: mR/s | DL16: 4.698 | DM16: mm | DN16: 3.227 | DO16: mm | DP16: 119.8 | DQ16: kV
A17: =Data!A53 -> 28 | B17: =Data!B53 -> 320 | C17: Mo/Mo | D17: =Data!D53 -> L | E17: 15 | F17: 2022-04-25T15:57:35.049 | G17: 3.1985 | H17: s | I17: 28.1 | J17: kV | K17: 3587 | L17: mR | M17: 1122 | N17: mR/s | O17: 0.3 | P17: mm | Q17: 1 | S17: USB | T17: 1 | U17: 6.5 | V17: Hz | AD17: Standard | AE17: Multi-Sensor | AF17: Diagnostic | AG17: General | AH17: 3.227 | AI17: mm | AJ17: 120.2 | AK17: kV | AL17: 119.8 | AM17: kV | AR17: 1 | AU17: 0.1642 | AV17: s | DA17: 120.2 | DB17: kV | DD17: 43-0001 | DJ17: 2572 | DK17: mR/s | DL17: 4.698 | DM17: mm | DN17: 3.227 | DO17: mm | DP17: 119.8 | DQ17: kV
A18: =Data!A54 -> 28 | B18: =Data!B54 -> 100 | C18: Mo/Rh | D18: =Data!D54 -> L | E18: 16 | F18: 2022-04-25T15:57:37.946 | G18: 0.9988 | H18: s | I18: 28.1 | J18: kV | K18: 915.6 | L18: mR | M18: 916.7 | N18: mR/s | O18: 0.36 | P18: mm | Q18: 1 | S18: USB | T18: 1 | U18: 6.5 | V18: Hz | AD18: Standard | AE18: Multi-Sensor | AF18: Diagnostic | AG18: General | AH18: 3.227 | AI18: mm | AJ18: 120.2 | AK18: kV | AL18: 119.8 | AM18: kV | AR18: 1 | AU18: 0.1637 | AV18: s | DA18: 120.2 | DB18: kV | DD18: 43-0001 | DJ18: 2572 | DK18: mR/s | DL18: 4.698 | DM18: mm | DN18: 3.227 | DO18: mm | DP18: 119.8 | DQ18: kV
A19: =Data!A55 -> 28 | B19: =Data!B55 -> 100 | C19: Rh/Rh | D19: =Data!D55 -> L | E19: 17 | F19: 2022-04-25T15:57:40.822 | G19: 1.6117 | H19: s | I19: 27.8 | J19: kV | K19: 850.4 | L19: mR | M19: 527.6 | N19: mR/s | O19: 0.37 | P19: mm | Q19: 1 | S19: USB | T19: 1 | U19: 6.9 | V19: Hz | AD19: Standard | AE19: Multi-Sensor | AF19: Diagnostic | AG19: General | AH19: 3.227 | AI19: mm | AJ19: 120.2 | AK19: kV | AL19: 119.8 | AM19: kV | AR19: 1 | AU19: 0.1553 | AV19: s | DA19: 120.2 | DB19: kV | DD19: 43-0001 | DJ19: 2572 | DK19: mR/s | DL19: 4.698 | DM19: mm | DN19: 3.227 | DO19: mm | DP19: 119.8 | DQ19: kV
A20: =Data!A56 -> 28 | B20: =Data!B56 -> 100 | C20: Rh/Al | D20: =Data!D56 -> L | E20: 18 | F20: 2022-04-25T15:57:43.699 | G20: 0.1321 | H20: s | I20: 28.1 | J20: kV | K20: 338.8 | L20: mR | M20: 2572 | N20: mR/s | O20: 0.36 | P20: mm | Q20: 1 | S20: USB | T20: 1 | U20: 8.2 | V20: Hz | AD20: Standard | AE20: Multi-Sensor | AF20: Diagnostic | AG20: General | AH20: 3.227 | AI20: mm | AJ20: 120.2 | AK20: kV | AL20: 119.8 | AM20: kV | AR20: 1 | AU20: 0.1317 | AV20: s | DA20: 120.2 | DB20: kV | DD20: 43-0001 | DJ20: 2572 | DK20: mR/s | DL20: 4.698 | DM20: mm | DN20: 3.227 | DO20: mm | DP20: 119.8 | DQ20: kV
A21: =Data!A57 -> 28 | B21: =Data!B57 -> 100 | C21: W/Rh | D21: =Data!D57 -> L | E21: 19 | F21: 2022-04-25T15:57:47.578 | G21: 0.1451 | H21: s | I21: 28.1 | J21: kV | K21: 372.6 | L21: mR | M21: 2572 | N21: mR/s | O21: 0.36 | P21: mm | Q21: 1 | S21: USB | T21: 1 | U21: 7.4 | V21: Hz | AD21: Standard | AE21: Multi-Sensor | AF21: Diagnostic | AG21: General | AH21: 3.227 | AI21: mm | AJ21: 120.2 | AK21: kV | AL21: 119.8 | AM21: kV | AR21: 1 | AU21: 0.1447 | AV21: s | DA21: 120.2 | DB21: kV | DD21: 43-0001 | DJ21: 2572 | DK21: mR/s | DL21: 4.698 | DM21: mm | DN21: 3.227 | DO21: mm | DP21: 119.8 | DQ21: kV
A22: =Data!A58 -> 28 | B22: =Data!B58 -> 100 | C22: W/Ag | D22: =Data!D58 -> L | E22: 20 | F22: 2022-04-25T15:57:51.650 | G22: 0.1642 | H22: s | I22: 28.1 | J22: kV | K22: 421.8 | L22: mR | M22: 2572 | N22: mR/s | O22: 0.36 | P22: mm | Q22: 1 | S22: USB | T22: 1 | U22: 6.5 | V22: Hz | AD22: Standard | AE22: Multi-Sensor | AF22: Diagnostic | AG22: General | AH22: 3.227 | AI22: mm | AJ22: 120.2 | AK22: kV | AL22: 119.8 | AM22: kV | AR22: 1 | AU22: 0.1639 | AV22: s | DA22: 120.2 | DB22: kV | DD22: 43-0001 | DJ22: 2572 | DK22: mR/s | DL22: 4.698 | DM22: mm | DN22: 3.227 | DO22: mm | DP22: 119.8 | DQ22: kV
A23: =Data!A59 -> 28 | B23: =Data!B59 -> 25 | C23: Mo/Mo | D23: =Data!D59 -> S | E23: 21 | F23: 2022-04-25T15:57:54.334 | G23: 0.2734 | H23: s | I23: 28.1 | J23: kV | K23: 702 | L23: mR | M23: 2572 | N23: mR/s | O23: 0.36 | P23: mm | Q23: 1 | S23: USB | T23: 1 | U23: 3.8 | V23: Hz | AD23: Standard | AE23: Multi-Sensor | AF23: Diagnostic | AG23: General | AH23: 3.227 | AI23: mm | AJ23: 120.2 | AK23: kV | AL23: 119.8 | AM23: kV | AR23: 1 | AU23: 0.2729 | AV23: s | DA23: 120.2 | DB23: kV | DD23: 43-0001 | DJ23: 2572 | DK23: mR/s | DL23: 4.698 | DM23: mm | DN23: 3.227 | DO23: mm | DP23: 119.8 | DQ23: kV
A24: =Data!A60 -> 28 | B24: =Data!B60 -> 25 | C24: Mo/Rh | D24: =Data!D60 -> S | E24: 22 | F24: 2022-04-25T15:57:57.236 | G24: 0.167 | H24: s | I24: 28.1 | J24: kV | K24: 428.8 | L24: mR | M24: 2572 | N24: mR/s | O24: 0.36 | P24: mm | Q24: 1 | S24: USB | T24: 1 | U24: 6.4 | V24: Hz | AD24: Standard | AE24: Multi-Sensor | AF24: Diagnostic | AG24: General | AH24: 3.227 | AI24: mm | AJ24: 120.2 | AK24: kV | AL24: 119.8 | AM24: kV | AR24: 1 | AU24: 0.1667 | AV24: s | DA24: 120.2 | DB24: kV | DD24: 43-0001 | DJ24: 2572 | DK24: mR/s | DL24: 4.698 | DM24: mm | DN24: 3.227 | DO24: mm | DP24: 119.8 | DQ24: kV
A25: =Data!A61 -> 28 | B25: =Data!B61 -> 25 | C25: Rh/Rh | D25: =Data!D61 -> S | E25: 23 | F25: 2022-04-25T15:58:00.125 | G25: 0.1522 | H25: s | I25: 28.1 | J25: kV | K25: 390.7 | L25: mR | M25: 2572 | N25: mR/s | O25: 0.36 | P25: mm | Q25: 1 | S25: USB | T25: 1 | U25: 7 | V25: Hz | AD25: Standard | AE25: Multi-Sensor | AF25: Diagnostic | AG25: General | AH25: 3.227 | AI25: mm | AJ25: 120.2 | AK25: kV | AL25: 119.8 | AM25: kV | AR25: 1 | AU25: 0.1519 | AV25: s | DA25: 120.2 | DB25: kV | DD25: 43-0001 | DJ25: 2572 | DK25: mR/s | DL25: 4.698 | DM25: mm | DN25: 3.227 | DO25: mm | DP25: 119.8 | DQ25: kV
A26: =Data!A62 -> 28 | B26: =Data!B62 -> 25 | C26: Rh/Al | D26: =Data!D62 -> S | E26: 24 | F26: 2022-04-25T15:58:03.212 | G26: 0.1714 | H26: s | I26: 28.1 | J26: kV | K26: 440 | L26: mR | M26: 2572 | N26: mR/s | O26: 0.36 | P26: mm | Q26: 1 | S26: USB | T26: 1 | U26: 6.2 | V26: Hz | AD26: Standard | AE26: Multi-Sensor | AF26: Diagnostic | AG26: General | AH26: 3.227 | AI26: mm | AJ26: 120.2 | AK26: kV | AL26: 119.8 | AM26: kV | AR26: 1 | AU26: 0.171 | AV26: s | DA26: 120.2 | DB26: kV | DD26: 43-0001 | DJ26: 2572 | DK26: mR/s | DL26: 4.698 | DM26: mm | DN26: 3.227 | DO26: mm | DP26: 119.8 | DQ26: kV
A27: =Data!A63 -> 28 | B27: =Data!B63 -> 25 | C27: W/Rh | D27: =Data!D63 -> S | E27: 25 | F27: 2022-04-25T15:58:06.294 | G27: 0.1569 | H27: s | I27: 28.1 | J27: kV | K27: 402.6 | L27: mR | M27: 2572 | N27: mR/s | O27: 0.36 | P27: mm | Q27: 1 | S27: USB | T27: 1 | U27: 6.8 | V27: Hz | AD27: Standard | AE27: Multi-Sensor | AF27: Diagnostic | AG27: General | AH27: 3.227 | AI27: mm | AJ27: 120.2 | AK27: kV | AL27: 119.8 | AM27: kV | AR27: 1 | AU27: 0.1565 | AV27: s | DA27: 120.2 | DB27: kV | DD27: 43-0001 | DJ27: 2572 | DK27: mR/s | DL27: 4.698 | DM27: mm | DN27: 3.227 | DO27: mm | DP27: 119.8 | DQ27: kV
A28: =Data!A64 -> 28 | B28: =Data!B64 -> 25 | C28: W/Ag | D28: =Data!D64 -> S | E28: 26 | F28: 2022-04-25T15:58:09.162 | G28: 0.1598 | H28: s | I28: 28.1 | J28: kV | K28: 409.9 | L28: mR | M28: 2572 | N28: mR/s | O28: 0.36 | P28: mm | Q28: 1 | S28: USB | T28: 1 | U28: 6.7 | V28: Hz | AD28: Standard | AE28: Multi-Sensor | AF28: Diagnostic | AG28: General | AH28: 3.227 | AI28: mm | AJ28: 120.2 | AK28: kV | AL28: 119.8 | AM28: kV | AR28: 1 | AU28: 0.1592 | AV28: s | DA28: 120.2 | DB28: kV | DD28: 43-0001 | DJ28: 2572 | DK28: mR/s | DL28: 4.698 | DM28: mm | DN28: 3.226 | DO28: mm | DP28: 119.8 | DQ28: kV

Sheet Data (hidden)
A1: Location: | B1: Outpatient Center
A2: Registration ID: | B2: 42
A3: Registrant/Owner: | B3: Community Hospital | G3: Yellow cells are to be entered manually.
A4: Facility Name: | B4: Main Campus
A5: Address: | B5: 1000 Wormwood Drive | G5: Blue cells are calculated automatically.
A6: City, State, ZIP: | B6: Somewhere, Else 00001
A7: Contact: | B7: Dr. Smith
A8: Telephone: | B8: (888) 555-1212
A9: 1 | B9: 2022-04-26T11:39:20.762 | C9: 0.07741 | D9: s | E9: 32.7 | F9: kV | G9: 290.3 | H9: mR | I9: 3765 | J9: mR/s | K9: 0.3538 | L9: mm | M9: 1 | O9: USB | P9: 1 | Q9: 14.8 | R9: Hz | Z9: Standard | AA9: Multi-Sensor | AB9: Mo/Mo | AC9: Mammo | AD9: 0.01977 | AE9: mm | AF9: 32.7 | AG9: kV | AH9: 32.6 | AI9: kV | AN9: 1 | AQ9: 0.077 | AR9: s | CW9: 32.7 | CX9: kV | CZ9: 43-0001
A10: Testing by: | B10: John Doe
A11: Test date: | B11: 2011-03-09
A12: Rapidose data file:
A14: Unit: | B14: Mammography | F14: All regulatory criteria are typical values and should be edited to match local regulatory requirements.
A15: Tube ID: | B15: 1
A16: System ID: | B16: 24
A18: Film-screen or digital? | B18: d | C18: (f/d)
A20: GEN mfg
A21: model
A22: serial
A23: date
A24: TUBE mfg
A25: model
A26: serial
A27: date
A29: ***********************************************************************************************************
A31: RADIATION OUTPUT MEASUREMENT:
C32: System SID = | D32: 66 | E32: cm
C33: Detector to breast support surface distance = | D33: 1.6 | E33: cm
C34: Breast support surface to Rapidose distance = | D34: 0.5 | E34: cm
C35: Point above breast support surface to calculate dose = | D35: 4.2 | E35: cm
C36: Inverse square correction = | D36: =(D32-D33-D34)^2/(D32-D33-D35)^2 -> 1.12670114
A38: Set kVp | B38: mAs | C38: Target/Filter | D38: Focal Spot | E38: Measured mR | F38: Measured Time (msec) | G38: Measured kVp | H38: kVp error | I38: ="Corrected mR @ "&D35&" cm" -> Corrected mR @ 4.2 cm | J38: ="mR/mAs @ "&D35&" cm" -> mR/mAs @ 4.2 cm | K38: HVL (mm Al) | L38: T/F code | O38: kVp | P38: =J38 -> mR/mAs @ 4.2 cm | Q38: ln(kVp) | R38: ln(mR/mAs)
A39: 24 | B39: 100 | C39: ='AG2 Data'!C3:C28 -> Mo/Mo | D39: L | E39: ='AG2 Data'!K3 -> 653.6 | F39: ='AG2 Data'!G3*1000 -> 1070.9 | G39: ='AG2 Data'!I3 -> 23.8 | H39: =IF(LEN(G39),ABS(G39-A39)/A39,"") -> 0.008333333333 | I39: =E39*$D$36 -> 736.4118652 | J39: =I39/B39 -> 7.364118652 | K39: ='AG2 Data'!O3 -> 0.36 | L39: =IF(C39="Mo/Mo",1,IF(C39="Mo/Rh",2,IF(C39="Rh/Rh",3,4))) -> 1 | O39: =A39 -> 24 | P39: =J39 -> 7.364118652 | Q39: =LN(O39) -> 3.17805383 | R39: 1.996619376
A40: 25 | B40: =B39 -> 100 | C40: Mo/Mo | D40: =D39 -> L | E40: ='AG2 Data'!K4 -> 764.9 | F40: ='AG2 Data'!G4*1000 -> 999.4 | G40: ='AG2 Data'!I4 -> 24.9 | H40: 0.004 | I40: 861.8137021 | J40: 8.618137021 | K40: ='AG2 Data'!O4 -> 0.37 | L40: =IF(C40="Mo/Mo",1,IF(C40="Mo/Rh",2,IF(C40="Rh/Rh",3,4))) -> 1 | O40: =A40 -> 25 | P40: =J40 -> 8.618137021 | Q40: 3.218875825 | R40: 2.153868938
A41: 26 | B41: =B40 -> 100 | C41: Mo/Mo | D41: L | E41: ='AG2 Data'!K5 -> 878.4 | F41: ='AG2 Data'!G5*1000 -> 999.2 | G41: ='AG2 Data'!I5 -> 26 | H41: 0 | I41: 989.6942815 | J41: 9.896942815 | K41: ='AG2 Data'!O5 -> 0.38 | L41: 1 | O41: =A41 -> 26 | P41: =J41 -> 9.896942815 | Q41: 3.258096538 | R41: 2.292225903
A42: 27 | B42: 100 | C42: Mo/Mo | D42: =D41 -> L | E42: ='AG2 Data'!K6 -> 995.3 | F42: ='AG2 Data'!G6*1000 -> 999.3 | G42: ='AG2 Data'!I6 -> 27 | H42: 0 | I42: 1121.405645 | J42: 11.21405645 | K42: ='AG2 Data'!O6 -> 0.39 | L42: 1 | O42: =A42 -> 27 | P42: =J42 -> 11.21405645 | Q42: 3.295836866 | R42: 2.417168031
A43: 28 | B43: 100 | C43: Mo/Mo | D43: L | E43: ='AG2 Data'!K7 -> 1116 | F43: ='AG2 Data'!G7*1000 -> 998.7 | G43: ='AG2 Data'!I7 -> 28.1 | H43: 0.003571428571 | I43: 1257.398472 | J43: 12.57398472 | K43: ='AG2 Data'!O7 -> 0.4 | L43: 1 | O43: =A43 -> 28 | P43: =AVERAGE(J43:J46) -> 12.57116797 | Q43: 3.33220451 | R43: 2.531405936
A44: 28 | B44: 100 | C44: Mo/Mo | D44: =D43 -> L | E44: ='AG2 Data'!K8 -> 1116 | F44: ='AG2 Data'!G8*1000 -> 998.8 | G44: ='AG2 Data'!I8 -> 28.1 | H44: 0.003571428571 | I44: 1257.398472 | J44: 12.57398472 | K44: ='AG2 Data'!O8 -> 0.3 | L44: 1 | O44: =A47 -> 29 | P44: =J47 -> 13.97109414 | Q44: 3.36729583 | R44: 2.636990491
A45: 28 | B45: 100 | C45: Mo/Mo | D45: =D44 -> L | E45: ='AG2 Data'!K9 -> 1115 | F45: ='AG2 Data'!G9*1000 -> 998.9 | G45: ='AG2 Data'!I9 -> 28.1 | H45: 0.003571428571 | I45: 1256.271771 | J45: 12.56271771 | K45: ='AG2 Data'!O9 -> 0.3 | L45: 1 | O45: =A48 -> 30 | P45: =J48 -> 15.42453861 | Q45: 3.401197382 | R45: 2.735959657
A46: 28 | B46: 100 | C46: Mo/Mo | D46: =D45 -> L | E46: ='AG2 Data'!K10 -> 1116 | F46: ='AG2 Data'!G10*1000 -> 998.5 | G46: ='AG2 Data'!I10 -> 28.1 | H46: 0.003571428571 | I46: 1257.398472 | J46: 12.57398472 | K46: ='AG2 Data'!O10 -> 0.3 | L46: 1 | O46: =A49 -> 32 | P46: =J49 -> 18.51169973 | Q46: 3.465735903 | R46: 2.91840295
A47: 29 | B47: 100 | C47: Mo/Mo | D47: L | E47: ='AG2 Data'!K11 -> 1240 | F47: ='AG2 Data'!G11*1000 -> 997.6 | G47: ='AG2 Data'!I11 -> 29.3 | H47: 0.01034482759 | I47: 1397.109414 | J47: 13.97109414 | K47: ='AG2 Data'!O11 -> 0.31 | L47: 1
A48: 30 | B48: 100 | C48: Mo/Mo | D48: L | E48: ='AG2 Data'!K12 -> 1369 | F48: ='AG2 Data'!G12*1000 -> 998 | G48: ='AG2 Data'!I12 -> 30.4 | H48: 0.01333333333 | I48: 1542.453861 | J48: 15.42453861 | K48: ='AG2 Data'!O12 -> 0.32 | L48: 1 | Q48: b
A49: 32 | B49: 100 | C49: Mo/Mo | D49: L | E49: ='AG2 Data'!K13 -> 1643 | F49: ='AG2 Data'!G13*1000 -> 1064.7 | G49: ='AG2 Data'!I13 -> 32.4 | H49: 0.0125 | I49: 1851.169973 | J49: 18.51169973 | K49: ='AG2 Data'!O13 -> 0.33 | L49: 1 | Q49: =LINEST(R39:R46,Q39:Q46) -> 3.189575851 | R49: -8.112035981
A50: 28 | B50: 25 | C50: Mo/Mo | D50: L | E50: ='AG2 Data'!K14 -> 274.2 | F50: ='AG2 Data'!G14*1000 -> 248.9 | G50: ='AG2 Data'!I14 -> 28 | H50: 0 | I50: 308.9414526 | J50: 12.35765811 | K50: ='AG2 Data'!O14 -> 0.29 | L50: 1 | Q50: =EXP(R49) -> 0.0002999076449
A51: 28 | B51: 50 | C51: Mo/Mo | D51: L | E51: ='AG2 Data'!K15 -> 554.4 | F51: ='AG2 Data'!G15*1000 -> 498.7 | G51: ='AG2 Data'!I15 -> 28.1 | H51: 0.003571428571 | I51: 624.6431121 | J51: 12.49286224 | K51: ='AG2 Data'!O15 -> 0.3 | L51: 1 | Q51: a
A52: 28 | B52: 200 | C52: Mo/Mo | D52: L | E52: ='AG2 Data'!K16 -> 2239 | F52: ='AG2 Data'!G16*1000 -> 1998.6 | G52: ='AG2 Data'!I16 -> 28.1 | H52: 0.003571428571 | I52: 2522.683853 | J52: 12.61341926 | K52: ='AG2 Data'!O16 -> 0.3 | L52: 1
A53: 28 | B53: 320 | C53: Mo/Mo | D53: L | E53: ='AG2 Data'!K17 -> 3587 | F53: ='AG2 Data'!G17*1000 -> 3198.5 | G53: ='AG2 Data'!I17 -> 28.1 | H53: 0.003571428571 | I53: 4041.47699 | J53: 12.62961559 | K53: ='AG2 Data'!O17 -> 0.3 | L53: 1
A54: 28 | B54: =B39 -> 100 | C54: Mo/Rh | D54: L | E54: ='AG2 Data'!K18 -> 915.6 | F54: ='AG2 Data'!G18*1000 -> 998.8 | G54: ='AG2 Data'!I18 -> 28.1 | H54: 0.003571428571 | I54: 1031.607564 | J54: 10.31607564 | K54: ='AG2 Data'!O18 -> 0.36 | L54: 2
A55: 28 | B55: =B40 -> 100 | C55: Rh/Rh | D55: L | E55: ='AG2 Data'!K19 -> 850.4 | F55: ='AG2 Data'!G19*1000 -> 1611.7 | G55: ='AG2 Data'!I19 -> 27.8 | H55: 0.007142857143 | I55: 958.1466496 | J55: 9.581466496 | K55: ='AG2 Data'!O19 -> 0.37 | L55: 3
A56: 28 | B56: =B41 -> 100 | C56: Rh/Al | D56: L | E56: ='AG2 Data'!K20 -> 338.8 | F56: ='AG2 Data'!G25*1000 -> 152.2 | G56: ='AG2 Data'!I20 -> 28.1 | H56: 0.003571428571 | I56: 381.7263463 | J56: 3.817263463 | K56: ='AG2 Data'!O20 -> 0.36 | L56: 4
A57: 28 | B57: =B42 -> 100 | C57: W/Rh | D57: L | E57: ='AG2 Data'!K21 -> 372.6 | F57: ='AG2 Data'!G26*1000 -> 171.4 | G57: ='AG2 Data'!I21 -> 28.1 | H57: 0.003571428571 | I57: 419.8088448 | J57: 4.198088448 | K57: ='AG2 Data'!O21 -> 0.36 | L57: 4
A58: 28 | B58: =B43 -> 100 | C58: W/Ag | D58: L | E58: ='AG2 Data'!K22 -> 421.8 | F58: ='AG2 Data'!G27*1000 -> 156.9 | G58: ='AG2 Data'!I22 -> 28.1 | H58: 0.003571428571 | I58: 475.2425409 | J58: 4.752425409 | K58: ='AG2 Data'!O22 -> 0.36 | L58: 4
A59: 28 | B59: 25 | C59: Mo/Mo | D59: S | E59: ='AG2 Data'!K23 -> 702 | F59: ='AG2 Data'!G28*1000 -> 159.8 | G59: ='AG2 Data'!I23 -> 28.1 | H59: 0.003571428571 | I59: 790.9442004 | J59: 31.63776802 | K59: ='AG2 Data'!O23 -> 0.36 | L59: 1
A60: 28 | B60: 25 | C60: Mo/Rh | D60: S | E60: ='AG2 Data'!K24 -> 428.8 | F60: ='AG2 Data'!G42*1000 -> 0 | G60: ='AG2 Data'!I24 -> 28.1 | H60: 0.003571428571 | I60: 483.1294489 | J60: 19.32517796 | K60: ='AG2 Data'!O24 -> 0.36 | L60: 2
A61: 28 | B61: 25 | C61: Rh/Rh | D61: S | E61: ='AG2 Data'!K25 -> 390.7 | F61: ='AG2 Data'!G43*1000 -> 0 | G61: ='AG2 Data'!I25 -> 28.1 | H61: 0.003571428571 | I61: 440.2021355 | J61: 17.60808542 | K61: ='AG2 Data'!O25 -> 0.36 | L61: 3
A62: 28 | B62: 25 | C62: Rh/Al | D62: S | E62: ='AG2 Data'!K26 -> 440 | F62: ='AG2 Data'!G44*1000 -> 0 | G62: ='AG2 Data'!I26 -> 28.1 | H62: 0.003571428571 | I62: 495.7485017 | J62: 19.82994007 | K62: ='AG2 Data'!O26 -> 0.36 | L62: 4
A63: 28 | B63: 25 | C63: W/Rh | D63: S | E63: ='AG2 Data'!K27 -> 402.6 | F63: ='AG2 Data'!G45*1000 -> 0 | G63: ='AG2 Data'!I27 -> 28.1 | H63: 0.003571428571 | I63: 453.609879 | J63: 18.14439516 | K63: ='AG2 Data'!O27 -> 0.36 | L63: 4
A64: 28 | B64: 25 | C64: W/Ag | D64: S | E64: ='AG2 Data'!K28 -> 409.9 | F64: ='AG2 Data'!G46*1000 -> 0 | G64: ='AG2 Data'!I28 -> 28.1 | H64: 0.003571428571 | I64: 461.8347974 | J64: 18.47339189 | K64: ='AG2 Data'!O28 -> 0.36 | L64: 4
A67: ******************************
A68: MA(S) LINEARITY
A69: mA(s) station | B69: mR/mAs | C69: linearity
A70: =B50 -> 25 | B70: =J50 -> 12.35765811
A71: =B51 -> 50 | B71: =J51 -> 12.49286224 | C71: =ABS(B70-B71)/(B70+B71) -> 0.005440696409
A72: =B43 -> 100 | B72: =AVERAGE(J43:J46) -> 12.57116797 | C72: =ABS(B71-B72)/(B71+B72) -> 0.003124227372
A73: =B52 -> 200 | B73: =J52 -> 12.61341926 | C73: =ABS(B72-B73)/(B72+B73) -> 0.001677664691
A74: =B53 -> 320 | B74: =J53 -> 12.62961559 | C74: =ABS(B73-B74)/(B73+B74) -> 0.0006416157559 | F74: Tolerance = | G74: 0.1 | H74: linearity coefficient
B76: =IF(MAX(C72:C74)<=G74,"Pass","FAIL") -> Pass | H76: Mark to include on Summary page
A77: Comment: | B77: =IF(B76="Pass","Radiation output linearity between different stations meets standards.","Radiation output linearity between different stations does not meet standards.") -> Radiation output linearity between different stations meets standards.
A79: *******************************
A80: EXPOSURE REPRODUCIBILITY
A82: Coefficient of Variation from above data:
A83: CV = | B83: =STDEV(I43:I46)/AVERAGE(I43:I46) -> 0.0004481290612 | F83: Tolerance = | G83: 0.05 | H83: coefficient of variation
B85: =IF(B83<=G83,"Pass","FAIL") -> Pass | H85: Mark to include on Summary page
A86: Comment: | B86: Exposure reproducibility is acceptable.
A89: *******************************
A90: kVp accuracy and HVL
A92: kVp accuracy standard | B92: 0.05
A93: Set kVp | B93: Target/Filter | C93: Measured kVp | D93: kVp error | E93: Measured HVL | F93: HVL lower limit | G93: HVL upper limit | H93: kVp pass? | I93: HVL pass? | L93: HVL C-factor
A94: =A39 -> 24 | B94: =C39 -> Mo/Mo | C94: =G39 -> 23.8 | D94: =IF(LEN(A94),(C94-A94)/A94,"") -> -0.008333333333 | E94: =IF(LEN(K39),K39,"") -> 0.36 | F94: =IF(LEN(A94),A94/100+0.03,"") -> 0.27 | G94: =IF(LEN(A94),IF(L39<>4,A94/100+CHOOSE(L39,$L$94,$L$95,$L$96),""),"") -> 0.36 | H94: =IF(LEN(A94),ABS(D94)<=0.05,"") -> TRUE | I94: =IF(LEN(A94),AND(E94>=F94,E94<=G94),"") -> TRUE | K94: Mo/Mo | L94: 0.12
A95: =A40 -> 25 | B95: =C40 -> Mo/Mo | C95: =G40 -> 24.9 | D95: =IF(LEN(A95),(C95-A95)/A95,"") -> -0.004 | E95: =IF(LEN(K40),K40,"") -> 0.37 | F95: =IF(LEN(A95),A95/100+0.03,"") -> 0.28 | G95: =IF(LEN(A95),IF(L40<>4,A95/100+CHOOSE(L40,$L$94,$L$95,$L$96),""),"") -> 0.37 | H95: =IF(LEN(A95),ABS(D95)<=0.05,"") -> TRUE | I95: =IF(LEN(A95),AND(E95>=F95,E95<=G95),"") -> TRUE | K95: Mo/Rh | L95: 0.19
A96: 26 | B96: =C41 -> Mo/Mo | C96: 26 | D96: 0 | E96: =IF(LEN(K41),K41,"") -> 0.38 | F96: 0.29 | G96: 0.38 | H96: TRUE | I96: TRUE | K96: Rh/Rh | L96: 0.22
A97: 27 | B97: =C42 -> Mo/Mo | C97: 27 | D97: 0 | E97: =IF(LEN(K42),K42,"") -> 0.39 | F97: 0.3 | G97: 0.39 | H97: TRUE | I97: TRUE
A98: 28 | B98: =C43 -> Mo/Mo | C98: 28.1 | D98: 0.003571428571 | E98: =IF(LEN(K43),K43,"") -> 0.4 | F98: 0.31 | G98: 0.4 | H98: TRUE | I98: TRUE
A99: 28 | B99: =C47 -> Mo/Mo | C99: 28.1 | D99: 0.003571428571 | E99: =IF(LEN(K47),K47,"") -> 0.31 | F99: 0.31 | G99: 0.4 | H99: TRUE | I99: TRUE
A100: 28 | B100: =C48 -> Mo/Mo | C100: 28.1 | D100: 0.003571428571 | E100: =IF(LEN(K48),K48,"") -> 0.32 | F100: 0.31 | G100: 0.4 | H100: TRUE | I100: TRUE
A101: 28 | B101: =C49 -> Mo/Mo | C101: 28.1 | D101: 0.003571428571 | E101: =IF(LEN(K49),K49,"") -> 0.33 | F101: 0.31 | G101: 0.4 | H101: TRUE | I101: TRUE
A102: 29 | B102: =IF(LEN(C54),C54,"") -> Mo/Rh | C102: 29.3 | D102: 0.01034482759 | E102: =IF(LEN(K54),K54,"") -> 0.36 | F102: 0.32 | G102: 0.41 | H102: TRUE | I102: TRUE
A103: 30 | B103: Rh/Rh | C103: 30.4 | D103: 0.01333333333 | E103: =IF(LEN(K55),K55,"") -> 0.37 | F103: 0.33 | G103: 0.42 | H103: TRUE | I103: TRUE
A104: 32 | B104: Rh/Al | C104: 32.4 | D104: 0.0125 | E104: 0.36 | F104: 0.35 | G104: 0.44 | H104: TRUE | I104: TRUE
A105: 28 | B105: W/Rh | C105: 28 | D105: 0 | E105: 0.36 | F105: 0.31 | G105: 0.4 | H105: TRUE | I105: TRUE
A106: 28 | B106: W/Ag | C106: 28.1 | D106: 0.003571428571 | E106: 0.36 | F106: 0.31 | G106: 0.4 | H106: TRUE | I106: TRUE
A107: 28 | B107: Mo/Mo | C107: 28.1 | D107: 0.003571428571 | E107: 0.36 | F107: 0.31 | G107: 0.4 | H107: TRUE | I107: TRUE
A108: 28 | B108: Mo/Rh | C108: 28.1 | D108: 0.003571428571 | E108: 0.36 | F108: 0.31 | G108: 0.4 | H108: TRUE | I108: TRUE
A109: 28 | B109: Rh/Rh | C109: 28.1 | D109: 0.003571428571 | E109: 0.36 | F109: 0.31 | G109: 0.47 | H109: TRUE | I109: TRUE
A110: 28 | B110: Rh/Al | C110: 27.8 | D110: -0.007142857143 | E110: 0.36 | F110: 0.31 | G110: 0.5 | H110: TRUE | I110: TRUE
A111: 28 | B111: W/Rh | C111: 28.1 | D111: 0.003571428571 | E111: 0.36 | F111: 0.31 | G111: =IF(LEN(A111),IF(L56<>4,A111/100+CHOOSE(L56,$L$94,$L$95,$L$96),""),"") ->  | H111: TRUE | I111: TRUE
A112: 28 | B112: W/Ag | C112: 28.1 | D112: =IF(LEN(A112),(C112-A112)/A112,"") -> 0.003571428571 | E112: 0.36 | F112: 0.31 | H112: TRUE | I112: TRUE
A114: kVp accuracy | B114: =IF(AND(H94:H112),"Pass","FAIL") -> Pass | H114: Mark to include on Summary page
A115: Comment: | B115: =IF(B114="Pass","kVp accuracy meets applicable standards.","kVp accuracy does not meet standards.") -> kVp accuracy meets applicable standards.
A117: HVL | B117: =IF(AND(I94:I112),"Pass","FAIL") -> Pass | H117: Mark to include on Summary page
A118: Comment: | B118: =IF(B117="Pass","X-ray beam filtration is adequate.","X-ray beam filtration does not meet standards.") -> X-ray beam filtration is adequate.
A120: ***********************************
A121: RADIATION OUTPUT
A123: =O38 -> kVp | B123: =P38 -> mR/mAs @ 4.2 cm
A124: =O39 -> 24 | B124: 7.364118652
A125: 25 | B125: 8.618137021
A126: 26 | B126: 9.896942815
A127: 27 | B127: 11.21405645
A128: =O43 -> 28 | B128: 12.57116797
A129: 29 | B129: 13.97109414
A130: 30 | B130: 15.42453861
A131: 32 | B131: 18.51169973
A133: Output acceptable? | B133: Pass
F135: No standard | H135: Mark to include on Summary page
A136: Comment: | B136: Radiation output is typical.
A139: ***********************************
A140: RADIATION AND KV WAVEFORM
A141: Capture the waveform image and paste it in the appropriate section of the Report.
A143: Waveform acceptable? | B143: Pass
F145: No standard | H145: Mark to include on Summary page
A146: Comment: | B146: Waveform is typical.
A149: *******************************
A150: General Comments
H151: Mark to include on Summary page
B152: Unit meets regulatory requirements. | H152: x | N152: =IF(LEN(H115),B115&" ","") -> 
N153: =IF(LEN(H118),B118&" ","") -> 
N154: =IF(LEN(H146),B146&" ","") -> 
N155: =IF(LEN(H77),B77&" ","") -> 
A156: ******************************* | N156: =IF(LEN(H86),B86&" ","") -> 
A157: Summary Comments | N157: =IF(LEN(H136),B136&" ","") -> 
B158: =N154&N155&N156&N158&N159 -> Unit meets regulatory requirements. | N158: =IF(LEN(H146),B146&" ","") -> 
N159: =IF(LEN(H152),B152&" ","") -> Unit meets regulatory requirements.
A163: *****************************

Sheet Report
A1: Mammographic Unit Performance Report
B3: Facility Identification | F3: System Identification
B4: =Data!B1 -> Outpatient Center | F4: =Data!B14 -> Mammography
B5: ="Registration ID "&Data!B2 -> Registration ID 42 | F5: =Data!B15 -> 1
B6: =Data!B3 -> Community Hospital | F6: Unique ID | I6: =Data!B16 -> 24
B7: =Data!B4 -> Main Campus | F7: Control Manufacturer | I7: =Data!B20 -> 0
B8: =Data!B5 -> 1000 Wormwood Drive | F8: Control Model | I8: =Data!B21 -> 0
B9: =Data!B6 -> Somewhere, Else 00001 | F9: Control S/N | I9: =Data!B22 -> 0
B10: =Data!B7 -> Dr. Smith | F10: Control Date | I10: =Data!B23 -> 0
B11: =Data!B8 -> (888) 555-1212 | F11: Tube Manufacturer | I11: =Data!B24 -> 0
F12: Tube Model | I12: =Data!B25 -> 0
F13: Tube S/N | I13: =Data!B26 -> 0
F14: Tube Date | I14: =Data!B27 -> 0
A16: Test Date | B16: =Data!B11 -> 40611
A17: Tested by | B17: =Data!B10 -> John Doe
A21: Signature
A24: Summary of the results of this performance survey
B25: (N/A = not applicable, N/M = not measured)
B27: =Data!B133 -> Pass | C27: Radiation output
B28: =Data!B117 -> Pass | C28: Beam quality
B29: =Data!B85 -> Pass | C29: Reproducibility of radiation exposures
B30: =Data!B114 -> Pass | C30: kVp accuracy
B31: =Data!B76 -> Pass | C31: mAs radiation output linearity
A33: General Comments:
B34: =IF(LEN(Data!B158),Data!B158,"") -> Unit meets regulatory requirements.
A39: X-Ray Machine Performance
A42: =Data!B133 -> Pass | B42: Radiation Output
E43: Measurement distance = | F43: =Data!D34&" above breast support surface" -> 0.5 above breast support surface
B45: Set kVp | C45: =Data!P38 -> mR/mAs @ 4.2 cm
B46: =Data!O39 -> 24 | C46: =Data!P39 -> 7.364118652
B47: =Data!O40 -> 25 | C47: =Data!P40 -> 8.618137021
B48: =Data!O41 -> 26 | C48: =Data!P41 -> 9.896942815
B49: =Data!O42 -> 27 | C49: =Data!P42 -> 11.21405645
B50: =Data!O43 -> 28 | C50: =Data!P43 -> 12.57116797
B51: =Data!O44 -> 29 | C51: =Data!P44 -> 13.97109414
B52: =Data!O45 -> 30 | C52: =Data!P45 -> 15.42453861
B53: =Data!O46 -> 32 | C53: =Data!P46 -> 18.51169973
B55: Comment: | C55: =Data!B136 -> Radiation output is typical.
A58: =Data!B114 -> Pass | B58: kVp Accuracy
B60: =Data!A93 -> Set kVp | C60: =Data!C93 -> Measured kVp | D60: =Data!D93 -> kVp error
B61: =Data!A94 -> 24 | C61: =Data!C94 -> 23.8 | D61: =Data!D94 -> -0.008333333333 | F61: 20 | G61: =Data!B92 -> 0.05
B62: =Data!A95 -> 25 | C62: =Data!C95 -> 24.9 | D62: =Data!D95 -> -0.004 | F62: 40 | G62: =Data!B92 -> 0.05
B63: =Data!A96 -> 26 | C63: =Data!C96 -> 26 | D63: =Data!D96 -> 0 | F63: 20 | G63: =-G61 -> -0.05
B64: =Data!A97 -> 27 | C64: =Data!C97 -> 27 | D64: =Data!D97 -> 0 | F64: 40 | G64: =-G62 -> -0.05
B65: =Data!A98 -> 28 | C65: =Data!C98 -> 28.1 | D65: =Data!D98 -> 0.003571428571
B66: =Data!A99 -> 28 | C66: =Data!C99 -> 28.1 | D66: =Data!D99 -> 0.003571428571
B67: =Data!A100 -> 28 | C67: =Data!C100 -> 28.1 | D67: =Data!D100 -> 0.003571428571
B68: =Data!A101 -> 28 | C68: =Data!C101 -> 28.1 | D68: =Data!D101 -> 0.003571428571
B70: ="The kVp error limit is "&TEXT(Data!B92,"0%.") -> The kVp error limit is 5%.
B72: Comment: | C72: =Data!B115 -> kVp accuracy meets applicable standards.
A75: =Data!B117 -> Pass | B75: Beam Quality
B77: =Data!A93 -> Set kVp | C77: Target / Filter | D77: =Data!E93 -> Measured HVL | E77: =Data!F93 -> HVL lower limit | F77: =Data!G93 -> HVL upper limit
B78: =Data!A94 -> 24 | C78: =Data!B94 -> Mo/Mo | D78: =Data!E94 -> 0.36 | E78: =Data!F94 -> 0.27 | F78: =Data!G94 -> 0.36
B79: =Data!A95 -> 25 | C79: =Data!B95 -> Mo/Mo | D79: =Data!E95 -> 0.37 | E79: =Data!F95 -> 0.28 | F79: =Data!G95 -> 0.37
B80: =Data!A96 -> 26 | C80: =Data!B96 -> Mo/Mo | D80: =Data!E96 -> 0.38 | E80: =Data!F96 -> 0.29 | F80: =Data!G96 -> 0.38
B81: =Data!A97 -> 27 | C81: =Data!B97 -> Mo/Mo | D81: =Data!E97 -> 0.39 | E81: =Data!F97 -> 0.3 | F81: =Data!G97 -> 0.39
B82: =Data!A98 -> 28 | C82: =Data!B98 -> Mo/Mo | D82: =Data!E98 -> 0.4 | E82: =Data!F98 -> 0.31 | F82: =Data!G98 -> 0.4
B83: =Data!A99 -> 28 | C83: =Data!B99 -> Mo/Mo | D83: =Data!E99 -> 0.31 | E83: =Data!F99 -> 0.31 | F83: =Data!G99 -> 0.4
B84: =Data!A100 -> 28 | C84: =Data!B100 -> Mo/Mo | D84: =Data!E100 -> 0.32 | E84: =Data!F100 -> 0.31 | F84: =Data!G100 -> 0.4
B85: =Data!A101 -> 28 | C85: =Data!B101 -> Mo/Mo | D85: =Data!E101 -> 0.33 | E85: =Data!F101 -> 0.31 | F85: =Data!G101 -> 0.4
B86: =Data!A102 -> 29 | C86: =Data!B102 -> Mo/Rh | D86: =Data!E102 -> 0.36 | E86: =Data!F102 -> 0.32 | F86: =Data!G102 -> 0.41
B87: =Data!A103 -> 30 | C87: =Data!B103 -> Rh/Rh | D87: =Data!E103 -> 0.37 | E87: =Data!F103 -> 0.33 | F87: =Data!G103 -> 0.42
B88: =Data!A104 -> 32 | C88: =Data!B104 -> Rh/Al | D88: =Data!E104 -> 0.36 | E88: =Data!F104 -> 0.35 | F88: =Data!G104 -> 0.44
B89: =Data!A105 -> 28 | C89: =Data!B105 -> W/Rh | D89: =Data!E105 -> 0.36 | E89: =Data!F105 -> 0.31 | F89: =Data!G105 -> 0.4
B90: =Data!A106 -> 28 | C90: =Data!B106 -> W/Ag | D90: =Data!E106 -> 0.36 | E90: =Data!F106 -> 0.31 | F90: =Data!G106 -> 0.4
B91: =Data!A107 -> 28 | C91: =Data!B107 -> Mo/Mo | D91: =Data!E107 -> 0.36 | E91: =Data!F107 -> 0.31 | F91: =Data!G107 -> 0.4
B92: =Data!A108 -> 28 | C92: =Data!B108 -> Mo/Rh | D92: =Data!E108 -> 0.36 | E92: =Data!F108 -> 0.31 | F92: =Data!G108 -> 0.4
B93: =Data!A109 -> 28 | C93: =Data!B109 -> Rh/Rh | D93: =Data!E109 -> 0.36 | E93: =Data!F109 -> 0.31 | F93: =Data!G109 -> 0.47
B94: =Data!A110 -> 28 | C94: =Data!B110 -> Rh/Al | D94: =Data!E110 -> 0.36 | E94: =Data!F110 -> 0.31 | F94: =Data!G110 -> 0.5
B95: =Data!A111 -> 28 | C95: =Data!B111 -> W/Rh | D95: =Data!E111 -> 0.36 | E95: =Data!F111 -> 0.31 | F95: =Data!G111 -> 
B96: =Data!A112 -> 28 | C96: =Data!B112 -> W/Ag | D96: =Data!E112 -> 0.36 | E96: =Data!F112 -> 0.31 | F96: =Data!G112 -> 
B98: Measured HVL must exceed the stated limit.
B100: Comment: | C100: =Data!B118 -> X-ray beam filtration is adequate.
A101: =Data!B85 -> Pass | B101: Exposure Reproducibility
B103: Exposure | C103: Measured mR
B104: #1 | C104: =Data!E43 -> 1116
B105: #2 | C105: =Data!E44 -> 1116
B106: #3 | C106: =Data!E45 -> 1115
B107: #4 | C107: =Data!E46 -> 1116
B108: Average | C108: =AVERAGE(C104:C107) -> 1115.75
B109: Std. Dev | C109: =STDEV(C104:C107) -> 0.5
B110: CV | C110: =C109/C108 -> 0.0004481290612
B111: ="CV must be less than "&TEXT(Data!G83,"0%.") -> CV must be less than 5%.
B113: Comment: | C113: =Data!B86 -> Exposure reproducibility is acceptable.
A116: =Data!B76 -> Pass | B116: mAs Linearity
B119: mAs | C119: mR/mAs | D119: Linearity Coeff.
B120: =Data!A70 -> 25 | C120: =Data!B70 -> 12.35765811
B121: =Data!A71 -> 50 | C121: =Data!B71 -> 12.49286224 | D121: =Data!C71 -> 0.005440696409 | G121: 0 | H121: 0.1
B122: =Data!A72 -> 100 | C122: =Data!B72 -> 12.57116797 | D122: =Data!C72 -> 0.003124227372 | G122: 1000 | H122: 0.1
B123: =Data!A73 -> 200 | C123: =Data!B73 -> 12.61341926 | D123: =Data!C73 -> 0.001677664691
B124: =Data!A74 -> 320 | C124: =Data!B74 -> 12.62961559 | D124: =Data!C74 -> 0.0006416157559
D126: ="Linearity coefficient must be less than "&FIXED(Data!G74,2)&"." -> Linearity coefficient must be less than 0.10.
B128: Comment: | C128: =Data!B77 -> Radiation output linearity between different stations meets standards.
A131: =Data!B143 -> Pass | B131: Radiation and kV Waveforms
B151: Comment: | C151: =Data!B146 -> Waveform is typical.
